fUSD/lending_fUSD_20250126
["ID","MTS","AMOUNT","RATE_DAILY","PERIOD"]
[350501798,1737930643424,-409.5441457,0.00011999,2]
[350501799,1737930643434,-510.61519058,0.00011999,2]
[350501800,1737930643443,-500.0,0.00011999,2]
[350501801,1737930643452,-2000.0,0.00011999,2]
[350501802,1737930643462,-500.0,0.00011999,2]
[350501803,1737930643471,-397.952126,0.00011999,2]
[350501804,1737930643484,-500.0,0.00011999,2]
[350501805,1737930643494,-510.41650089,0.00011999,2]
[350501806,1737930643503,-509.73793653,0.00011999,2]
[350501807,1737930643512,-500.0,0.00011999,2]
[350501808,1737930643521,-426.37810572,0.00011999,2]
[350501809,1737930643530,-275.479118,0.00011999,2]
[350501810,1737930643540,-515.19623651,0.00011999,2]
[350501811,1737930643550,-500.0,0.00011999,2]
[350501812,1737930643560,-500.0,0.00011999,2]
[350501813,1737930643570,-455.02447858,0.00011999,2]
[350501814,1737930643579,-500.0,0.00011999,2]
[350501815,1737930643588,-500.0,0.00011999,2]
[350501816,1737930643598,-351.31616425,0.00011999,2]
[350501817,1737930643608,-500.0,0.00011999,2]
[350501818,1737930643617,-500.0,0.00011999,2]
[350501819,1737930643627,-500.0,0.00011999,2]
[350501820,1737930643637,-500.0,0.00011999,2]
[350501821,1737930643648,-502.33129292,0.00011999,2]
[350501822,1737930643657,-500.0,0.00011999,2]
[350501823,1737930643666,-501.96800706,0.00011999,2]
[350501824,1737930643676,-153.17351686,0.00011999,2]
[350501825,1737930643685,-500.0,0.00011999,2]
[350501827,1737930643695,-500.0,0.00011999,2]
[350501828,1737930643704,-500.0,0.00011999,2]
[350501830,1737930643714,-500.0,0.00011999,2]
[350501832,1737930643726,-500.0,0.00011999,2]
[350501835,1737930643735,-500.0,0.00011999,2]
[350501837,1737930643746,-169.12673284,0.00011999,2]
[350501839,1737930643755,-500.0,0.00011999,2]
[350501841,1737930643767,-500.0,0.00011999,2]
[350501842,1737930643776,-500.0,0.00011999,2]
[350501844,1737930643785,-500.0,0.00011999,2]
[350501846,1737930643795,-500.0,0.00011999,2]
[350501848,1737930643806,-500.0,0.00011999,2]
[350501850,1737930643815,-500.0,0.00011999,2]
[350501852,1737930643824,-500.0,0.00011999,2]
[350501855,1737930643833,-500.0,0.00011999,2]
[350501856,1737930643843,-500.0,0.00011999,2]
[350501859,1737930643852,-324.75,0.00011999,2]
[350501860,1737930643862,-603.96167189,0.00011999,2]
[350501863,1737930643871,-500.0,0.00011999,2]
[350501865,1737930643881,-500.0,0.00011999,2]
[350501866,1737930643890,-500.0,0.00011999,2]
[350501868,1737930643901,-500.0,0.00011999,2]
[350501871,1737930643911,-500.0,0.00011999,2]
[350501872,1737930643920,-500.0,0.00011999,2]
[350501874,1737930643929,-500.0,0.00011999,2]
[350501877,1737930643939,-500.0,0.00011999,2]
[350501878,1737930643948,-500.0,0.00011999,2]
[350501880,1737930643957,-500.0,0.00011999,2]
[350501882,1737930643967,-500.0,0.00011999,2]
[350501884,1737930643976,-500.0,0.00011999,2]
[350501887,1737930643985,-500.0,0.00011999,2]
[350501889,1737930643995,-417.24419932,0.00011999,2]
[350501890,1737930644005,-500.0,0.00011999,2]
[350501893,1737930644014,-500.0,0.00011999,2]
[350501894,1737930644024,-3344.53183261,0.00011999,2]
[350501896,1737930644033,-500.0,0.00011999,2]
[350501898,1737930644043,-500.0,0.00011999,2]
[350501900,1737930644052,-500.0,0.00011999,2]
[350501902,1737930644061,-570.13,0.00011999,2]
[350501904,1737930644070,-565.49369669,0.00011999,2]
[350501906,1737930644082,-500.0,0.00011999,2]
[350501908,1737930644091,-519.24,0.00011999,2]
[350501910,1737930644101,-500.0,0.00011999,2]
[350501912,1737930644110,-500.0,0.00011999,2]
[350501914,1737930644119,-500.0,0.00011999,2]
[350501917,1737930644129,-500.0,0.00011999,2]
[350501919,1737930644138,-500.0,0.00011999,2]
[350501920,1737930644148,-500.0,0.00011999,2]
[350501922,1737930644157,-500.0,0.00011999,2]
[350501924,1737930644167,-500.0,0.00011999,2]
[350501926,1737930644176,-500.0,0.00011999,2]
[350501928,1737930644186,-500.0,0.00011999,2]
[350501930,1737930644195,-281.57735242,0.00011999,2]
[350501932,1737930644204,-500.0,0.00011999,2]
[350501934,1737930644214,-500.0,0.00011999,2]
[350501936,1737930644223,-500.0,0.00011999,2]
[350501938,1737930644233,-500.0,0.00011999,2]
[350501941,1737930644243,-402.6,0.00011999,2]
[350501942,1737930644253,-500.0,0.00011999,2]
[350501944,1737930644262,-500.0,0.00011999,2]
[350501947,1737930644272,-500.0,0.00011999,2]
[350501949,1737930644281,-500.0,0.00011999,2]
[350501951,1737930644290,-448.39,0.00011999,2]
[350501952,1737930644299,-260.3753819,0.00011999,2]
[350501954,1737930644308,-500.0,0.00011999,2]
[350501956,1737930644319,-500.0,0.00011999,2]
[350501959,1737930644329,-187.97,0.00011999,2]
[350501960,1737930644337,-500.0,0.00011999,2]
[350501962,1737930644347,-500.0,0.00011999,2]
[350501964,1737930644356,-500.0,0.00011999,2]
[350501966,1737930644365,-295.81480613,0.00011999,2]
[350501968,1737930644374,-500.0,0.00011999,2]
[350501970,1737930644384,-500.0,0.00011999,2]
[350501972,1737930644394,-500.0,0.00011999,2]
[350501974,1737930644403,-484.01,0.00011999,2]
[350501976,1737930644412,-643.02,0.00011999,2]
[350501979,1737930644421,-500.0,0.00011999,2]
[350501981,1737930644431,-500.0,0.00011999,2]
[350501983,1737930644440,-500.0,0.00011999,2]
[350501985,1737930644450,-500.0,0.00011999,2]
[350501987,1737930644459,-500.0,0.00011999,2]
[350501989,1737930644468,-500.0,0.00011999,2]
[350501991,1737930644477,-500.0,0.00011999,2]
[350501992,1737930644486,-500.0,0.00011999,2]
[350501995,1737930644496,-500.0,0.00011999,2]
[350501996,1737930644506,-400.106984,0.00011999,2]
[350501998,1737930644515,-500.0,0.00011999,2]
[350502000,1737930644524,-490.81,0.00011999,2]
[350502002,1737930644534,-629.13,0.00011999,2]
[350502005,1737930644543,-500.0,0.00011999,2]
[350502006,1737930644552,-500.0,0.00011999,2]
[350502008,1737930644562,-500.0,0.00011999,2]
[350502011,1737930644571,-260.01,0.00011999,2]
[350502013,1737930644580,-500.0,0.00011999,2]
[350502014,1737930644589,-500.0,0.00011999,2]
[350502017,1737930644599,-500.0,0.00011999,2]
[350502018,1737930644608,-305.6430162,0.00011999,2]
[350502020,1737930644618,-500.0,0.00011999,2]
[350502022,1737930644627,-541.57,0.00011999,2]
[350502024,1737930644637,-500.0,0.00011999,2]
[350502026,1737930644646,-500.0,0.00011999,2]
[350502028,1737930644655,-500.0,0.00011999,2]
[350502030,1737930644665,-500.0,0.00011999,2]
[350502032,1737930644674,-433.5,0.00011999,2]
[350502034,1737930644684,-515.07,0.00011999,2]
[350502035,1737930644694,-500.0,0.00011999,2]
[350502036,1737930644704,-500.0,0.00011999,2]
[350502037,1737930644715,-500.0,0.00011999,2]
[350502038,1737930644727,-500.0,0.00011999,2]
[350502039,1737930644736,-500.0,0.00011999,2]
[350502040,1737930644746,-500.0,0.00011999,2]
[350502041,1737930644755,-486.79,0.00011999,2]
[350502042,1737930644766,-500.0,0.00011999,2]
[350502043,1737930644776,-500.0,0.00011999,2]
[350502044,1737930644785,-500.0,0.00011999,2]
[350502045,1737930644794,-500.0,0.00011999,2]
[350502046,1737930644805,-482.6,0.00011999,2]
[350502047,1737930644814,-500.0,0.00011999,2]
[350502048,1737930644824,-153.53338669,0.00011999,2]
[350502049,1737930644833,-500.0,0.00011999,2]
[350502050,1737930644843,-286.91,0.00011999,2]
[350502051,1737930644852,-500.0,0.00011999,2]
[350502052,1737930644861,-500.0,0.00011999,2]
[350502053,1737930644871,-500.0,0.00011999,2]
[350502054,1737930644882,-500.0,0.00011999,2]
[350502055,1737930644892,-500.0,0.00011999,2]
[350502056,1737930644903,-500.0,0.00011999,2]
[350502057,1737930644912,-616.34,0.00011999,2]
[350502058,1737930644921,-500.0,0.00011999,2]
[350502059,1737930644931,-500.0,0.00011999,2]
[350502060,1737930644939,-500.0,0.00011999,2]
[350502061,1737930644949,-500.0,0.00011999,2]
[350502062,1737930644958,-500.0,0.00011999,2]
[350502063,1737930644967,-500.0,0.00011999,2]
[350502064,1737930644976,-500.0,0.00011999,2]
[350502065,1737930644986,-548.65422406,0.00011999,2]
[350502066,1737930644995,-500.0,0.00011999,2]
[350502067,1737930645005,-500.0,0.00011999,2]
[350502068,1737930645015,-500.0,0.00011999,2]
[350502069,1737930645025,-500.0,0.00011999,2]
[350502070,1737930645035,-248.15,0.00012,2]
[350502071,1737930645044,-844.0,0.00012,2]
[350502072,1737930645054,-85896.97425867,0.00012,2]
[350502073,1737930645070,-2358.98512711,0.00012,2]
[350502075,1737930645636,-660.71880001,0.00012,2]
[350502076,1737930645657,-1811.33979427,0.00012,2]
[350502077,1737930645669,-1591.15001,0.00012,2]
[350502078,1737930645763,-4313.0874496,0.00012,2]
[350502079,1737930645862,-5964.15909514,0.00012,2]
[350502080,1737930645957,-837.26558691,0.00012,2]
[350502086,1737931186130,237.77,0.00016658,30]
[350502087,1737931316068,240.87,8.662e-05,2]
[350502088,1737931591122,-183.05934344,0.000101,2]
[350502099,1737931831828,-346.6317736,0.000101,2]
[350502100,1737931831939,-9470.30888296,0.000101,2]
[350502101,1737931831951,-192.37,0.00010137,2]
[350502102,1737931831960,-410.16,0.0001023,2]
[350502103,1737931831970,-605.89,0.0001023,2]
[350502104,1737931831981,-250.0,0.00010282,2]
[350502105,1737931831990,-234.72966131,0.00010343,2]
[350502106,1737931832053,-23655.27033869,0.00010343,2]
[350502107,1737931832063,-308.96,0.00010487,2]
[350502108,1737931832072,-250.0,0.00010686,2]
[350502109,1737931832083,-836.54,0.00010705,2]
[350502110,1737931832094,-2000.0,0.00010727,2]
[350502111,1737931832103,-394.9593,0.000109,2]
[350502112,1737931832112,-240.87,0.00010926,2]
[350502113,1737931832121,-150.0,0.00010999,2]
[350502114,1737931832131,-80248.95283556,0.00011,2]
[350502115,1737931832142,-18778.09597499,0.00011,2]
[350502116,1737931832167,-13351.40782066,0.00011,2]
[350502117,1737931832179,-2152.70112517,0.00011,2]
[350502238,1737931837725,-13306.40893188,0.00011,2]
[350502239,1737931837836,-6130.81899381,0.00011,2]
[350502240,1737931837845,-1265.13259224,0.00011,2]
[350502243,1737931839932,-3553.97594792,0.00011,2]
[350502244,1737931840299,-1093.40781246,0.00011,2]
[350502245,1737931840311,-1886.06340411,0.00011,2]
[350502246,1737931840322,-493.66470875,0.00011,2]
[350502255,1737931842782,-626.22624728,0.00011,2]
[350502312,1737931845874,-280.20529914,0.00011,2]
[350502314,1737931845885,-5235.3101513,0.00011,2]
[350502317,1737931845923,-2502.1756668,0.00011,2]
[350502323,1737932062687,46327.02948685,9.581e-05,7]
[350502324,1737932062715,11096.76083845,9.581e-05,7]
[350502325,1737932168582,216.78,8.64e-05,2]
[350502326,1737932268542,225.88,0.00016658,30]
[350502328,1737932579901,1000.0,0.00022,120]
[350502377,1737933032004,-418.27,9.755e-05,2]
[350502379,1737933032015,-250.0,9.769e-05,2]
[350502380,1737933032025,-1193.860001,9.809e-05,2]
[350502381,1737933032036,-251.180199,9.809e-05,2]
[350502382,1737933032046,-170.97,9.89e-05,2]
[350502383,1737933032057,-931.45028609,9.901e-05,2]
[350502384,1737933032065,-566.24951491,9.901e-05,2]
[350502385,1737933032280,-1901.41048509,9.901e-05,2]
[350502386,1737933032291,-20508.95,9.909e-05,2]
[350502387,1737933032301,-1330.06,9.975e-05,2]
[350502388,1737933032311,-455.31,0.00010039,2]
[350502389,1737933032321,-157.01,0.00010137,2]
[350502390,1737933032330,-250.0,0.00010166,2]
[350502391,1737933032339,-250.0,0.00010236,2]
[350502392,1737933032348,-162.11,0.00010269,2]
[350502393,1737933032357,-520.32,0.00010279,2]
[350502394,1737933032367,-575.12,0.000103,2]
[350502395,1737933032376,-170.58,0.00010366,2]
[350502396,1737933032386,-150.0,0.00010499,2]
[350502397,1737933032396,-77319.12951491,0.000105,2]
[350502398,1737933032412,-1555.99291151,0.000105,2]
[350502399,1737933032422,-15399.29471526,0.000105,2]
[350502400,1737933036526,-5110.24358885,0.000105,2]
[350502401,1737933036538,-8078.60900422,0.000105,2]
[350502402,1737933036554,-514.98783939,0.000105,2]
[350502403,1737933036565,-98130.0,0.000105,2]
[350502404,1737933036631,-3409.40237569,0.000105,2]
[350502405,1737933036643,-12012.0,0.000105,2]
[350502406,1737933036659,-1042.75870001,0.000105,2]
[350502407,1737933036745,-575.115,0.000105,2]
[350502408,1737933036757,-3282.0,0.000105,2]
[350502409,1737933036768,-4707.49564748,0.000105,2]
[350502451,1737933037899,-10384.0,0.000105,2]
[350502452,1737933037968,-1035.5,0.000105,2]
[350502453,1737933038041,-155499.99999997,0.000105,2]
[350502454,1737933038052,-2075.43690109,0.000105,2]
[350502455,1737933038064,-1235.0,0.000105,2]
[350502456,1737933038090,-437136.57289185,0.000105,2]
[350502457,1737933038150,-190820.00000002,0.000105,2]
[350502458,1737933038296,-23692.4684951,0.000105,2]
[350502461,1737933038308,-7796.13156,0.000105,2]
[350502463,1737933038321,-41844.5672976,0.000105,2]
[350502563,1737933040206,-2220.6271795,0.000105,2]
[350502564,1737933040218,-310.93062,0.000105,2]
[350502565,1737933040229,-3114.0,0.000105,2]
[350502566,1737933040267,-312.6123,0.000105,2]
[350502567,1737933040468,-27426.73516892,0.000105,2]
[350502577,1737933044138,-1026.147,0.000105,2]
[350502578,1737933044150,-5177.5,0.000105,2]
[350502581,1737933044641,-1642.5,0.000105,2]
[350502593,1737933046173,-327.32699998,0.000105,2]
[350502594,1737933046184,-1237.2,0.000105,2]
[350502595,1737933046216,-530.0,0.000105,2]
[350502596,1737933046256,-681.30224368,0.000105,2]
[350502597,1737933046279,-1909.04804958,0.000105,2]
[350502598,1737933046290,-20125.4671973,0.000105,2]
[350502599,1737933046301,-10080.17125615,0.000105,2]
[350502600,1737933046313,-16528.50997184,0.000105,2]
[350502601,1737933046324,-10689.6419,0.000105,2]
[350503282,1737933053354,205.94,8.705e-05,2]
[350503493,1737933069197,15118.0628758,9.581e-05,7]
[350503496,1737933556932,350.0,0.00022,120]
[350503497,1737933563353,222.35,0.00016658,30]
[350503498,1737933585849,-250.0,0.0001019,2]
[350503499,1737933585872,-282.53,0.00010221,2]
[350503500,1737933585894,-250.0,0.000103,2]
[350503501,1737933585919,-1000.0,0.00010304,2]
[350503502,1737933585940,-1000.0,0.00010499,2]
[350503503,1737933585964,-795.92735839,0.00010499,2]
[350503504,1737933585986,-150.0,0.00010499,2]
[350503505,1737933586008,-96271.54264161,0.000105,2]
[350503513,1737934092658,238.42,8.219e-05,2]
[350503543,1737934232224,-250.0,0.0001004,2]
[350503544,1737934232233,-100.30966397,0.00010137,2]
[350503545,1737934232386,-82.44033603,0.00010137,2]
[350503546,1737934232399,-222.33985781,0.00010271,2]
[350503547,1737934232411,-138.88014219,0.00010271,2]
[350503548,1737934232420,-687.93399509,0.00010277,2]
[350503549,1737934232432,-713.39633466,0.00010277,2]
[350503550,1737934232526,-3023.7,0.00010277,2]
[350503551,1737934232537,-2071.20967025,0.00010277,2]
[350503552,1737934232546,-267.77,0.00010294,2]
[350503553,1737934232556,-250.0,0.00010306,2]
[350503554,1737934232567,-1866.85687,0.000104,2]
[350503555,1737934232577,-238.42,0.00010482,2]
[350503556,1737934232587,-300.0,0.00010499,2]
[350503557,1737934232596,-150.0,0.00010499,2]
[350503558,1737934232605,-158.0,0.00010499,2]
[350503559,1737934232615,-13535.7312965,0.000105,2]
[350503560,1737934232627,-13764.12503026,0.000105,2]
[350503561,1737934232643,-30617.66941282,0.000105,2]
[350503562,1737934232655,-1006.1552966,0.000105,2]
[350503563,1737934232666,-99227.99999971,0.000105,2]
[350503564,1737934232677,-44892.19780457,0.000105,2]
[350503565,1737934232687,-249.92,0.000105,2]
[350503566,1737934232697,-250.55,0.000105,2]
[350503567,1737934232707,-248.09,0.000105,2]
[350503568,1737934232716,-248.14,0.000105,2]
[350503569,1737934232726,-246.3,0.000105,2]
[350503570,1737934232736,-800.0,0.00010676,2]
[350503571,1737934232745,-424.16445662,0.00010698,2]
[350503572,1737934232755,-600.0,0.000107,3]
[350503573,1737934232765,-151.16,0.000108,2]
[350503574,1737934232774,-299.48,0.000108,2]
[350503575,1737934232784,-304.94,0.000108,2]
[350503576,1737934232793,-299.35,0.000108,2]
[350503577,1737934232802,-772.56,0.000108,2]
[350503578,1737934232812,-438.07,0.000108,2]
[350503579,1737934232821,-982.9,0.000108,2]
[350503580,1737934232831,-150.0,0.000108,2]
[350503581,1737934232839,-438.07,0.000108,2]
[350503582,1737934232849,-150.0,0.000108,2]
[350503583,1737934232858,-150.0,0.000108,2]
[350503584,1737934232867,-150.0,0.000108,2]
[350503585,1737934232877,-982.9,0.000108,2]
[350503586,1737934232886,-882.22,0.000108,2]
[350503587,1737934232900,-150.0,0.000108,2]
[350503588,1737934232910,-438.07,0.000108,2]
[350503589,1737934232920,-150.0,0.000108,2]
[350503590,1737934232935,-150.0,0.000108,2]
[350503592,1737934232945,-438.07,0.000108,2]
[350503594,1737934232954,-150.0,0.000108,2]
[350503595,1737934232964,-150.0,0.000108,2]
[350503597,1737934232974,-150.0,0.000108,2]
[350503598,1737934232984,-150.0,0.000108,2]
[350503599,1737934232994,-438.07,0.000108,2]
[350503600,1737934233003,-150.0,0.000108,2]
[350503601,1737934233014,-150.0,0.000108,2]
[350503602,1737934233024,-438.07,0.000108,2]
[350503603,1737934233034,-150.0,0.000108,2]
[350503604,1737934233044,-1300.0,0.000108,3]
[350503605,1737934233055,-1508.4167,0.00010858,2]
[350503606,1737934233065,-295.8646407,0.000109,2]
[350503607,1737934233075,-150.0,0.000109,2]
[350503608,1737934233085,-150.0,0.000109,2]
[350503609,1737934233095,-150.0,0.000109,2]
[350503610,1737934233105,-438.07,0.000109,2]
[350503611,1737934233114,-150.0,0.000109,2]
[350503612,1737934233124,-438.07,0.000109,2]
[350503613,1737934233134,-150.0,0.000109,2]
[350503614,1737934233148,-150.0,0.000109,2]
[350503615,1737934233158,-150.0,0.000109,2]
[350503616,1737934233168,-301.69,0.000109,2]
[350503617,1737934233179,-150.0,0.000109,2]
[350503618,1737934233189,-150.0,0.000109,2]
[350503619,1737934233200,-529.75,0.000109,2]
[350503620,1737934233210,-179.72748939,0.000109,2]
[350503621,1737934233220,-1900.0,0.000109,3]
[350503622,1737934233229,-155.8311991,0.000109,2]
[350503623,1737934233238,-500.0,0.00010958,2]
[350503624,1737934233248,-508.30711593,0.00010958,2]
[350503625,1737934233257,-524.27162252,0.00010958,2]
[350503626,1737934233267,-500.0,0.00010958,2]
[350503627,1737934233277,-500.0,0.00010958,2]
[350503628,1737934233287,-500.0,0.00010958,2]
[350503629,1737934233297,-318.84814366,0.00010958,2]
[350503630,1737934233306,-500.0,0.00010958,2]
[350503631,1737934233316,-500.0,0.00010958,2]
[350503632,1737934233325,-500.0,0.00010958,2]
[350503633,1737934233335,-500.0,0.00010958,2]
[350503634,1737934233345,-500.0,0.00010958,2]
[350503635,1737934233354,-500.0,0.00010958,2]
[350503636,1737934233365,-500.0,0.00010958,2]
[350503637,1737934233375,-500.0,0.00010958,2]
[350503638,1737934233384,-500.0,0.00010958,2]
[350503639,1737934233397,-500.0,0.00010958,2]
[350503640,1737934233406,-500.0,0.00010958,2]
[350503641,1737934233416,-185.20861365,0.00010958,2]
[350503642,1737934233427,-397.10175272,0.00010958,2]
[350503643,1737934233436,-606.49470888,0.00010958,2]
[350503644,1737934233447,-508.61277293,0.00010958,2]
[350503645,1737934233457,-500.0,0.00010958,2]
[350503646,1737934233467,-504.93008753,0.00010958,2]
[350503647,1737934233476,-546.77185126,0.00010958,2]
[350503648,1737934233486,-505.34419201,0.00010958,2]
[350503649,1737934233496,-507.80571988,0.00010958,2]
[350503650,1737934233506,-500.0,0.00010958,2]
[350503651,1737934233516,-588.58324873,0.00010958,2]
[350503652,1737934233525,-500.0,0.00010958,2]
[350503653,1737934233535,-500.0,0.00010958,2]
[350503654,1737934233544,-267.9144196,0.00010958,2]
[350503655,1737934233554,-500.0,0.00010958,2]
[350503656,1737934233564,-500.0,0.00010958,2]
[350503657,1737934233573,-307.29045101,0.00010958,2]
[350503658,1737934233582,-500.0,0.00010958,2]
[350503659,1737934233592,-500.0,0.00010958,2]
[350503660,1737934233602,-503.78223036,0.00010958,2]
[350503661,1737934233611,-500.0,0.00010958,2]
[350503662,1737934233621,-500.0,0.00010958,2]
[350503663,1737934233630,-500.0,0.00010958,2]
[350503664,1737934233640,-500.0,0.00010958,2]
[350503665,1737934233652,-500.0,0.00010958,2]
[350503666,1737934233662,-500.0,0.00010958,2]
[350503667,1737934233671,-530.65433095,0.00010958,2]
[350503668,1737934233681,-500.0,0.00010958,2]
[350503669,1737934233690,-500.0,0.00010958,2]
[350503670,1737934233700,-500.0,0.00010958,2]
[350503671,1737934233710,-500.0,0.00010958,2]
[350503672,1737934233720,-500.0,0.00010958,2]
[350503673,1737934233730,-500.0,0.00010958,2]
[350503674,1737934233740,-500.0,0.00010958,2]
[350503675,1737934233749,-500.0,0.00010958,2]
[350503676,1737934233758,-500.0,0.00010958,2]
[350503677,1737934233768,-500.0,0.00010958,2]
[350503678,1737934233777,-507.20396339,0.00010958,2]
[350503679,1737934233787,-500.0,0.00010958,2]
[350503680,1737934233797,-503.12403072,0.00010958,2]
[350503681,1737934233806,-306.45801456,0.00010958,2]
[350503682,1737934233816,-500.0,0.00010958,2]
[350503683,1737934233825,-500.0,0.00010958,2]
[350503684,1737934233835,-500.0,0.00010958,2]
[350503685,1737934233844,-500.0,0.00010958,2]
[350503686,1737934233853,-500.0,0.00010958,2]
[350503687,1737934233862,-500.0,0.00010958,2]
[350503688,1737934233871,-500.0,0.00010958,2]
[350503689,1737934233881,-500.0,0.00010958,2]
[350503690,1737934233891,-500.0,0.00010958,2]
[350503691,1737934233903,-500.0,0.00010958,2]
[350503692,1737934233913,-500.0,0.00010958,2]
[350503693,1737934233925,-500.0,0.00010958,2]
[350503694,1737934233936,-500.0,0.00010958,2]
[350503695,1737934233945,-500.0,0.00010958,2]
[350503696,1737934233955,-500.0,0.00010958,2]
[350503697,1737934233964,-500.0,0.00010958,2]
[350503698,1737934233976,-500.0,0.00010958,2]
[350503699,1737934233985,-500.0,0.00010958,2]
[350503700,1737934233995,-500.0,0.00010958,2]
[350503701,1737934234004,-500.0,0.00010958,2]
[350503702,1737934234014,-500.0,0.00010958,2]
[350503703,1737934234025,-500.0,0.00010958,2]
[350503704,1737934234034,-500.0,0.00010958,2]
[350503705,1737934234044,-500.0,0.00010958,2]
[350503706,1737934234054,-500.0,0.00010958,2]
[350503707,1737934234063,-464.41724368,0.00010958,2]
[350503708,1737934234073,-500.0,0.00010958,2]
[350503709,1737934234083,-500.0,0.00010958,2]
[350503710,1737934234092,-500.0,0.00010958,2]
[350503711,1737934234102,-500.0,0.00010958,2]
[350503712,1737934234111,-500.0,0.00010958,2]
[350503713,1737934234121,-500.0,0.00010958,2]
[350503714,1737934234132,-500.0,0.00010958,2]
[350503715,1737934234145,-500.0,0.00010958,2]
[350503716,1737934234155,-500.0,0.00010958,2]
[350503717,1737934234165,-500.0,0.00010958,2]
[350503718,1737934234175,-500.0,0.00010958,2]
[350503719,1737934234184,-500.0,0.00010958,2]
[350503720,1737934234194,-500.0,0.00010958,2]
[350503721,1737934234205,-500.0,0.00010958,2]
[350503722,1737934234215,-500.0,0.00010958,2]
[350503723,1737934234224,-500.0,0.00010958,2]
[350503724,1737934234234,-562.1,0.00010958,2]
[350503725,1737934234244,-500.0,0.00010958,2]
[350503726,1737934234253,-500.0,0.00010958,2]
[350503727,1737934234263,-500.0,0.00010958,2]
[350503728,1737934234272,-500.0,0.00010958,2]
[350503729,1737934234281,-500.0,0.00010958,2]
[350503730,1737934234291,-500.0,0.00010958,2]
[350503731,1737934234300,-500.0,0.00010958,2]
[350503732,1737934234311,-500.0,0.00010958,2]
[350503733,1737934234320,-500.0,0.00010958,2]
[350503734,1737934234330,-500.0,0.00010958,2]
[350503735,1737934234340,-500.0,0.00010958,2]
[350503736,1737934234349,-500.0,0.00010958,2]
[350503737,1737934234359,-500.0,0.00010958,2]
[350503738,1737934234368,-500.0,0.00010958,2]
[350503739,1737934234378,-500.0,0.00010958,2]
[350503740,1737934234388,-500.0,0.00010958,2]
[350503741,1737934234401,-500.0,0.00010958,2]
[350503742,1737934234608,-500.0,0.00010958,2]
[350503743,1737934234618,-500.0,0.00010958,2]
[350503744,1737934234628,-500.0,0.00010958,2]
[350503745,1737934234638,-500.0,0.00010958,2]
[350503746,1737934234651,-500.0,0.00010958,2]
[350503747,1737934234661,-500.0,0.00010958,2]
[350503748,1737934234671,-500.0,0.00010958,2]
[350503749,1737934234681,-217.91023213,0.00010958,2]
[350503750,1737934234691,-500.0,0.00010958,2]
[350503751,1737934234700,-500.0,0.00010958,2]
[350503752,1737934234711,-500.0,0.00010958,2]
[350503753,1737934234720,-500.0,0.00010958,2]
[350503754,1737934234729,-500.0,0.00010958,2]
[350503755,1737934234739,-500.0,0.00010958,2]
[350503756,1737934234748,-500.0,0.00010958,2]
[350503757,1737934234758,-500.0,0.00010958,2]